{"text_format":"3","workbook":"xlsx","n_sheets":1,"sheets":["Presión arterial y glucosa"],"not_rendered":{"defined_names":9},"read":"whole","date_system":"1900"}

{"sheet":"Presión arterial y glucosa","index":0,"n_rows":13,"n_cols":11,"rows_kept":13,"merged":[[0,1,4,3],[0,4,0,9],[1,4,1,6],[1,7,1,9]]}
[null,"Medidor de presión arterial y glucosa",null,null,"Personalice los valores de las escalas en las celdas E2 a J5, a continuación."]
[{"$nulls":4},"PRESIÓN ARTERIAL",null,null,"ESCALA DE GLUCOSA"]
[{"$nulls":4},120,"SISTÓLICA",140,70,100,150]
[{"$nulls":4},80,"DIASTÓLICA",90,"BAJA","NORMAL","ALTA"]
[{"$nulls":4},"PRESIÓN ÓPTIMA",null,"LLAMAR AL MÉDICO"]
[null,"Fecha","Hora","Situación","Sistólica","Diastólica","Frecuencia cardíaca","Glucosa","Nivel","Estado","Notas"]
[null,{"$f":"TODAY()","v":"2022-08-03"},"06:00:00","Al despertarse",129,79,72,55,{"$f":"PresiónArterialyGlucosa[[#This Row],[Glucosa]]","v":55},{"$f":"IFERROR(IF(PresiónArterialyGlucosa[[#This Row],[Nivel]]=0,\"\",IF(PresiónArterialyGlucosa[[#This Row],[Nivel]]<=GBaja,\"Baja\",IF(AND(PresiónArterialyGlucosa[[#This Row],[Nivel]]>GBaja,PresiónArterialyGlucosa[[#This Row],[Nivel]]<GAlta),\"Normal\",\"Alta\"))), \"\")","v":"Baja"}]
[null,{"$f":"TODAY()","v":"2022-08-03"},"07:00:00","Antes de comer",120,80,74,70,{"$f":"PresiónArterialyGlucosa[[#This Row],[Glucosa]]","v":70},{"$f":"IFERROR(IF(PresiónArterialyGlucosa[[#This Row],[Nivel]]=0,\"\",IF(PresiónArterialyGlucosa[[#This Row],[Nivel]]<=GBaja,\"Baja\",IF(AND(PresiónArterialyGlucosa[[#This Row],[Nivel]]>GBaja,PresiónArterialyGlucosa[[#This Row],[Nivel]]<GAlta),\"Normal\",\"Alta\"))), \"\")","v":"Baja"}]
[null,"2022-08-03","09:00:00","Después de comer",133,80,75,75,{"$f":"PresiónArterialyGlucosa[[#This Row],[Glucosa]]","v":75},{"$f":"IFERROR(IF(PresiónArterialyGlucosa[[#This Row],[Nivel]]=0,\"\",IF(PresiónArterialyGlucosa[[#This Row],[Nivel]]<=GBaja,\"Baja\",IF(AND(PresiónArterialyGlucosa[[#This Row],[Nivel]]>GBaja,PresiónArterialyGlucosa[[#This Row],[Nivel]]<GAlta),\"Normal\",\"Alta\"))), \"\")","v":"Normal"}]
[null,"2022-08-03","10:00:00","Solo PA",143,91,75,190,{"$f":"PresiónArterialyGlucosa[[#This Row],[Glucosa]]","v":190},{"$f":"IFERROR(IF(PresiónArterialyGlucosa[[#This Row],[Nivel]]=0,\"\",IF(PresiónArterialyGlucosa[[#This Row],[Nivel]]<=GBaja,\"Baja\",IF(AND(PresiónArterialyGlucosa[[#This Row],[Nivel]]>GBaja,PresiónArterialyGlucosa[[#This Row],[Nivel]]<GAlta),\"Normal\",\"Alta\"))), \"\")","v":"Alta"}]
[null,"2022-08-03","12:00:00","Antes de comer",141,84,70,140,{"$f":"PresiónArterialyGlucosa[[#This Row],[Glucosa]]","v":140},{"$f":"IFERROR(IF(PresiónArterialyGlucosa[[#This Row],[Nivel]]=0,\"\",IF(PresiónArterialyGlucosa[[#This Row],[Nivel]]<=GBaja,\"Baja\",IF(AND(PresiónArterialyGlucosa[[#This Row],[Nivel]]>GBaja,PresiónArterialyGlucosa[[#This Row],[Nivel]]<GAlta),\"Normal\",\"Alta\"))), \"\")","v":"Normal"}]
[null,{"$f":"TODAY()","v":"2022-08-03"},"15:00:00","Después de comer",132,80,68,90,{"$f":"PresiónArterialyGlucosa[[#This Row],[Glucosa]]","v":90},{"$f":"IFERROR(IF(PresiónArterialyGlucosa[[#This Row],[Nivel]]=0,\"\",IF(PresiónArterialyGlucosa[[#This Row],[Nivel]]<=GBaja,\"Baja\",IF(AND(PresiónArterialyGlucosa[[#This Row],[Nivel]]>GBaja,PresiónArterialyGlucosa[[#This Row],[Nivel]]<GAlta),\"Normal\",\"Alta\"))), \"\")","v":"Normal"},"Tomar medicación para la presión arterial con la comida"]
[null,"Promedios",null,null,{"$f":"SUBTOTAL(101,PresiónArterialyGlucosa[Sistólica])","v":133},{"$f":"SUBTOTAL(101,PresiónArterialyGlucosa[Diastólica])","v":{"v":82.33333333333333,"d":"82"}},{"$f":"SUBTOTAL(101,PresiónArterialyGlucosa[Frecuencia cardíaca])","v":{"v":72.33333333333333,"d":"72"}},{"$f":"SUBTOTAL(101,PresiónArterialyGlucosa[Glucosa])","v":{"v":103.33333333333333,"d":"103"}}]